[Event "Titled Tuesday Blitz May 4 2021"]
[White "Lopez Del Alamo, Antonio"]
[Black "Nefedov, Sergey"]
[WhiteFideId "2227339"]
[BlackFideId "24113417"]
[WhiteElo "2098"]
[BlackElo "2385"]
[Result "1-0"]
[Round "04"]
[TimeControl "180+1"]
[Date "2021.05.04"]
[WhiteClock "0:00:41"]
[BlackClock "0:00:02"]

1. e4 {[%clk 0:03:00]}  d5 {[%clk 0:02:57]} 2. exd5 {[%clk 0:02:58]}  Qxd5 {[%clk 0:02:57]} 3. Nc3 {[%clk 0:02:58]}  Qd8 {[%clk 0:02:56]} 4. d4 {[%clk 0:02:58]}  Nf6 {[%clk 0:02:56]} 5. Nf3 {[%clk 0:02:57]}  c6 {[%clk 0:02:54]} 6. Bc4 {[%clk 0:02:52]}  Bf5 {[%clk 0:02:54]} 7. Ne5 {[%clk 0:02:48]}  e6 {[%clk 0:02:53]} 8. g4 {[%clk 0:02:27]}  Be4 {[%clk 0:02:50]} 9. f3 {[%clk 0:02:25]}  Bd5 {[%clk 0:02:48]} 10. Nxd5 {[%clk 0:02:12]}  Nxd5 {[%clk 0:02:30]} 11. Qe2 {[%clk 0:01:58]}  Nd7 {[%clk 0:01:44]} 12. Bd2 {[%clk 0:01:43]}  Nxe5 {[%clk 0:01:29]} 13. dxe5 {[%clk 0:01:41]}  Qh4+ {[%clk 0:01:16]} 14. Qf2 {[%clk 0:01:40]}  Qxf2+ {[%clk 0:00:56]} 15. Kxf2 {[%clk 0:01:41]}  h5 {[%clk 0:00:56]} 16. h3 {[%clk 0:01:33]}  hxg4 {[%clk 0:00:50]} 17. hxg4 {[%clk 0:01:34]}  Rg8 {[%clk 0:00:31]} 18. a3 {[%clk 0:01:28]}  Bc5+ {[%clk 0:00:30]} 19. Ke2 {[%clk 0:01:26]}  Ke7 {[%clk 0:00:26]} 20. Bd3 {[%clk 0:01:08]}  Rad8 {[%clk 0:00:23]} 21. c3 {[%clk 0:00:55]}  Bb6 {[%clk 0:00:16]} 22. Be4 {[%clk 0:00:54]}  f6 {[%clk 0:00:08]} 23. c4 {[%clk 0:00:50]}  Nc7 {[%clk 0:00:05]} 24. exf6+ {[%clk 0:00:50]}  gxf6 {[%clk 0:00:06]} 25. Rh7+ {[%clk 0:00:49]}  Kf8 {[%clk 0:00:03]} 26. c5 {[%clk 0:00:42]}  Bxc5 {[%clk 0:00:02]} 27. Rxc7 {[%clk 0:00:41]} 1-0


[Site "https://www.chess.com"]

[Event "Titled Tuesday Blitz May 4 2021"]
[White "Manolache, Marius"]
[Black "parintele_chess"]
[WhiteFideId "1201530"]
[WhiteElo "2391"]
[BlackElo "2261"]
[Result "1-0"]
[Round "04"]
[TimeControl "180+1"]
[Date "2021.05.04"]
[WhiteClock "0:01:38"]
[BlackClock "0:00:20"]

1. d4 {[%clk 0:03:00]}  Nf6 {[%clk 0:02:58]} 2. Nf3 {[%clk 0:03:00]}  b6 {[%clk 0:02:58]} 3. Bg5 {[%clk 0:02:59]}  Bb7 {[%clk 0:02:56]} 4. e3 {[%clk 0:02:59]}  h6 {[%clk 0:02:56]} 5. Bh4 {[%clk 0:02:58]}  e6 {[%clk 0:02:54]} 6. Nbd2 {[%clk 0:02:57]}  d6 {[%clk 0:02:53]} 7. a4 {[%clk 0:02:56]}  Nbd7 {[%clk 0:02:51]} 8. a5 {[%clk 0:02:55]}  a6 {[%clk 0:02:49]} 9. axb6 {[%clk 0:02:54]}  cxb6 {[%clk 0:02:50]} 10. c3 {[%clk 0:02:53]}  Be7 {[%clk 0:02:48]} 11. Nc4 {[%clk 0:02:52]}  b5 {[%clk 0:02:41]} 12. Na5 {[%clk 0:02:49]}  Be4 {[%clk 0:02:35]} 13. Nd2 {[%clk 0:02:48]}  Bh7 {[%clk 0:02:24]} 14. Be2 {[%clk 0:02:45]}  Qb6 {[%clk 0:02:18]} 15. O-O {[%clk 0:02:42]}  O-O {[%clk 0:02:15]} 16. Ra2 {[%clk 0:02:41]}  Rfe8 {[%clk 0:02:11]} 17. Qb3 {[%clk 0:02:33]}  Ne4 {[%clk 0:02:07]} 18. Nxe4 {[%clk 0:02:30]}  Bxe4 {[%clk 0:02:08]} 19. Bxe7 {[%clk 0:02:24]}  Rxe7 {[%clk 0:02:07]} 20. Rfa1 {[%clk 0:02:19]}  Bd5 {[%clk 0:02:04]} 21. Qc2 {[%clk 0:02:18]}  Bxa2 {[%clk 0:02:04]} 22. Rxa2 {[%clk 0:02:17]}  Nb8 {[%clk 0:01:53]} 23. Bf3 {[%clk 0:02:15]}  d5 {[%clk 0:01:53]} 24. Nb3 {[%clk 0:02:15]}  Nd7 {[%clk 0:01:49]} 25. e4 {[%clk 0:02:14]}  dxe4 {[%clk 0:01:41]} 26. Qxe4 {[%clk 0:02:14]}  Rc8 {[%clk 0:01:35]} 27. Qh4 {[%clk 0:02:06]}  Nf6 {[%clk 0:01:33]} 28. Be2 {[%clk 0:02:00]}  Rec7 {[%clk 0:01:30]} 29. h3 {[%clk 0:01:58]}  b4 {[%clk 0:01:27]} 30. c4 {[%clk 0:01:57]}  Rxc4 {[%clk 0:01:19]} 31. Bxc4 {[%clk 0:01:56]}  Rxc4 {[%clk 0:01:20]} 32. Qf4 {[%clk 0:01:56]}  Nd5 {[%clk 0:00:58]} 33. Qe5 {[%clk 0:01:52]}  Qc6 {[%clk 0:00:35]} 34. Nc5 {[%clk 0:01:45]}  Rc1+ {[%clk 0:00:34]} 35. Kh2 {[%clk 0:01:44]}  Rc2 {[%clk 0:00:24]} 36. Rxa6 {[%clk 0:01:39]}  Qb5 {[%clk 0:00:24]} 37. Ra8+ {[%clk 0:01:38]}  Kh7 {[%clk 0:00:20]} 38. Qe4+ {[%clk 0:01:38]} 1-0


[Site "https://www.chess.com"]

[Event "Titled Tuesday Blitz May 4 2021"]
[White "Martinez Alcantara, Jose Eduardo"]
[Black "Sargsyan, Anna M."]
[WhiteFideId "3805662"]
[BlackFideId "13308130"]
[WhiteElo "3008"]
[BlackElo "2571"]
[Result "1-0"]
[Round "04"]
[TimeControl "180+1"]
[Date "2021.05.04"]
[WhiteClock "0:01:40"]
[BlackClock "0:00:35"]

1. e4 {[%clk 0:02:59]}  c6 {[%clk 0:02:59]} 2. Nf3 {[%clk 0:02:59]}  d5 {[%clk 0:03:00]} 3. d3 {[%clk 0:03:00]}  dxe4 {[%clk 0:02:59]} 4. dxe4 {[%clk 0:03:01]}  Qxd1+ {[%clk 0:02:59]} 5. Kxd1 {[%clk 0:03:02]}  Bg4 {[%clk 0:02:59]} 6. Be2 {[%clk 0:03:02]}  Nd7 {[%clk 0:03:00]} 7. Ne1 {[%clk 0:03:02]}  Bxe2+ {[%clk 0:02:59]} 8. Kxe2 {[%clk 0:03:03]}  O-O-O {[%clk 0:03:00]} 9. Nd3 {[%clk 0:03:03]}  e5 {[%clk 0:02:58]} 10. Be3 {[%clk 0:03:03]}  b6 {[%clk 0:02:57]} 11. a4 {[%clk 0:03:01]}  a5 {[%clk 0:02:54]} 12. Nd2 {[%clk 0:03:01]}  f6 {[%clk 0:02:54]} 13. Rhb1 {[%clk 0:03:00]}  c5 {[%clk 0:02:50]} 14. c3 {[%clk 0:02:57]}  Kc7 {[%clk 0:02:39]} 15. b4 {[%clk 0:02:56]}  cxb4 {[%clk 0:02:01]} 16. cxb4 {[%clk 0:02:57]}  axb4 {[%clk 0:02:02]} 17. Nxb4 {[%clk 0:02:48]}  Bxb4 {[%clk 0:01:59]} 18. Rxb4 {[%clk 0:02:49]}  Ne7 {[%clk 0:01:38]} 19. Rc1+ {[%clk 0:02:21]}  Kb7 {[%clk 0:01:26]} 20. Nc4 {[%clk 0:02:09]}  Nc8 {[%clk 0:01:10]} 21. a5 {[%clk 0:01:55]}  b5 {[%clk 0:00:59]} 22. Na3 {[%clk 0:01:53]}  Ka6 {[%clk 0:00:54]} 23. Nxb5 {[%clk 0:01:47]}  Kxa5 {[%clk 0:00:49]} 24. Rb2 {[%clk 0:01:41]}  Ka6 {[%clk 0:00:35]} 25. Nc7+ {[%clk 0:01:40]} 1-0


[Site "https://www.chess.com"]

[Event "Titled Tuesday Blitz May 4 2021"]
[White "Martirosyan, Haik M."]
[Black "Jarovinsky, Alexey"]
[WhiteFideId "13306553"]
[BlackFideId "14115131"]
[WhiteElo "2597"]
[BlackElo "2446"]
[Result "1-0"]
[Round "04"]
[TimeControl "180+1"]
[Date "2021.05.04"]
[WhiteClock "0:01:18"]
[BlackClock "0:00:50"]

1. c4 {[%clk 0:02:59]}  e5 {[%clk 0:02:58]} 2. g3 {[%clk 0:02:59]}  Nf6 {[%clk 0:02:58]} 3. Bg2 {[%clk 0:02:59]}  Nc6 {[%clk 0:02:57]} 4. Nc3 {[%clk 0:02:58]}  Bb4 {[%clk 0:02:57]} 5. Nd5 {[%clk 0:02:58]}  O-O {[%clk 0:02:54]} 6. e3 {[%clk 0:02:55]}  Nxd5 {[%clk 0:02:49]} 7. cxd5 {[%clk 0:02:54]}  Ne7 {[%clk 0:02:49]} 8. a3 {[%clk 0:02:53]}  Bd6 {[%clk 0:02:48]} 9. d4 {[%clk 0:02:46]}  exd4 {[%clk 0:02:44]} 10. Qxd4 {[%clk 0:02:45]}  c5 {[%clk 0:02:45]} 11. Qd1 {[%clk 0:02:38]}  b5 {[%clk 0:02:36]} 12. Ne2 {[%clk 0:02:36]}  a6 {[%clk 0:02:31]} 13. O-O {[%clk 0:02:32]}  Re8 {[%clk 0:02:15]} 14. e4 {[%clk 0:02:28]}  Bb7 {[%clk 0:01:56]} 15. f4 {[%clk 0:02:18]}  c4 {[%clk 0:01:56]} 16. Kh1 {[%clk 0:02:08]}  Bc5 {[%clk 0:01:51]} 17. f5 {[%clk 0:01:57]}  f6 {[%clk 0:01:48]} 18. Nf4 {[%clk 0:01:54]}  Nc8 {[%clk 0:01:44]} 19. Nh5 {[%clk 0:01:51]}  Qe7 {[%clk 0:01:34]} 20. Qg4 {[%clk 0:01:46]}  Kh8 {[%clk 0:01:32]} 21. e5 {[%clk 0:01:40]}  fxe5 {[%clk 0:01:21]} 22. f6 {[%clk 0:01:29]}  gxf6 {[%clk 0:01:20]} 23. Nxf6 {[%clk 0:01:29]}  Nd6 {[%clk 0:01:13]} 24. Bg5 {[%clk 0:01:26]}  Nf7 {[%clk 0:00:51]} 25. Bh4 {[%clk 0:01:19]}  Nh6 {[%clk 0:00:50]} 26. Qh5 {[%clk 0:01:18]} 1-0


[Site "https://www.chess.com"]

[Event "Titled Tuesday Blitz May 4 2021"]
[White "Mayaud, Raphael"]
[Black "Haessel, Dale R."]
[WhiteFideId "627151"]
[BlackFideId "2012618"]
[WhiteElo "2191"]
[BlackElo "2167"]
[Result "0-1"]
[Round "04"]
[TimeControl "180+1"]
[Date "2021.05.04"]
[WhiteClock "0:00:16"]
[BlackClock "0:00:09"]

1. d4 {[%clk 0:03:00]}  Nf6 {[%clk 0:02:56]} 2. Bg5 {[%clk 0:03:00]}  d5 {[%clk 0:02:55]} 3. Bxf6 {[%clk 0:03:00]}  gxf6 {[%clk 0:02:54]} 4. c4 {[%clk 0:03:00]}  dxc4 {[%clk 0:02:40]} 5. e3 {[%clk 0:02:58]}  e6 {[%clk 0:02:37]} 6. Bxc4 {[%clk 0:02:57]}  b6 {[%clk 0:02:27]} 7. Qf3 {[%clk 0:02:48]}  c6 {[%clk 0:02:22]} 8. Nc3 {[%clk 0:02:43]}  Bb7 {[%clk 0:02:17]} 9. O-O-O {[%clk 0:02:41]}  Nd7 {[%clk 0:02:15]} 10. Qh5 {[%clk 0:02:30]}  Qe7 {[%clk 0:02:08]} 11. Nge2 {[%clk 0:02:25]}  f5 {[%clk 0:02:03]} 12. Nf4 {[%clk 0:02:18]}  O-O-O {[%clk 0:01:55]} 13. Kb1 {[%clk 0:02:03]}  Bg7 {[%clk 0:01:49]} 14. Qe2 {[%clk 0:01:52]}  Kb8 {[%clk 0:01:38]} 15. h4 {[%clk 0:01:37]}  Nf6 {[%clk 0:01:33]} 16. h5 {[%clk 0:01:29]}  Bh6 {[%clk 0:01:30]} 17. Nd3 {[%clk 0:01:24]}  Rhg8 {[%clk 0:01:14]} 18. Rhg1 {[%clk 0:01:16]}  Ne4 {[%clk 0:01:04]} 19. Nxe4 {[%clk 0:01:12]}  fxe4 {[%clk 0:01:03]} 20. Ne5 {[%clk 0:01:09]}  Bg7 {[%clk 0:00:51]} 21. g4 {[%clk 0:00:58]}  c5 {[%clk 0:00:49]} 22. Bb5 {[%clk 0:00:44]}  cxd4 {[%clk 0:00:43]} 23. exd4 {[%clk 0:00:44]}  Bxe5 {[%clk 0:00:41]} 24. dxe5 {[%clk 0:00:44]}  Qc5 {[%clk 0:00:39]} 25. Rxd8+ {[%clk 0:00:37]}  Rxd8 {[%clk 0:00:38]} 26. g5 {[%clk 0:00:26]}  Qxe5 {[%clk 0:00:37]} 27. g6 {[%clk 0:00:26]}  hxg6 {[%clk 0:00:35]} 28. hxg6 {[%clk 0:00:26]}  fxg6 {[%clk 0:00:30]} 29. Rxg6 {[%clk 0:00:26]}  Qc5 {[%clk 0:00:12]} 30. Rxe6 {[%clk 0:00:20]}  a6 {[%clk 0:00:11]} 31. Bc4 {[%clk 0:00:19]}  Rc8 {[%clk 0:00:09]} 32. b3 {[%clk 0:00:16]}  b5 {[%clk 0:00:09]} 0-1


[Site "https://www.chess.com"]

[Event "Titled Tuesday Blitz May 4 2021"]
[White "Mayeregger, Arnold"]
[Black "Yavorovsky, Valeriy"]
[WhiteFideId "3705226"]
[BlackFideId "14121549"]
[WhiteElo "1567"]
[BlackElo "2267"]
[Result "0-1"]
[Round "04"]
[TimeControl "180+1"]
[Date "2021.05.04"]
[WhiteClock "0:00:02"]
[BlackClock "0:00:08"]

1. e4 {[%clk 0:03:00]}  e5 {[%clk 0:02:59]} 2. Nf3 {[%clk 0:03:00]}  Nc6 {[%clk 0:02:59]} 3. Bc4 {[%clk 0:03:00]}  Bc5 {[%clk 0:02:58]} 4. c3 {[%clk 0:03:01]}  Nf6 {[%clk 0:02:58]} 5. d3 {[%clk 0:03:01]}  d6 {[%clk 0:02:58]} 6. O-O {[%clk 0:03:02]}  a6 {[%clk 0:02:58]} 7. Bb3 {[%clk 0:03:01]}  Ba7 {[%clk 0:02:58]} 8. Re1 {[%clk 0:02:59]}  O-O {[%clk 0:02:56]} 9. Nbd2 {[%clk 0:02:59]}  Ng4 {[%clk 0:02:56]} 10. Rf1 {[%clk 0:02:57]}  Kh8 {[%clk 0:02:55]} 11. h3 {[%clk 0:02:57]}  Nh6 {[%clk 0:02:54]} 12. Re1 {[%clk 0:02:53]}  f5 {[%clk 0:02:53]} 13. Nf1 {[%clk 0:02:53]}  Qf6 {[%clk 0:02:50]} 14. exf5 {[%clk 0:02:40]}  Nxf5 {[%clk 0:02:41]} 15. Ne3 {[%clk 0:02:33]}  Nh4 {[%clk 0:02:32]} 16. Nd5 {[%clk 0:02:00]}  Nxf3+ {[%clk 0:02:29]} 17. Qxf3 {[%clk 0:02:01]}  Qxf3 {[%clk 0:02:27]} 18. gxf3 {[%clk 0:02:02]}  Bxh3 {[%clk 0:02:22]} 19. Nxc7 {[%clk 0:02:00]}  Rac8 {[%clk 0:02:22]} 20. Nd5 {[%clk 0:01:59]}  Rxf3 {[%clk 0:02:20]} 21. Be3 {[%clk 0:02:00]}  Bxe3 {[%clk 0:02:03]} 22. Nxe3 {[%clk 0:02:01]}  Rcf8 {[%clk 0:02:00]} 23. Re2 {[%clk 0:02:00]}  Bd7 {[%clk 0:01:49]} 24. Bd5 {[%clk 0:01:59]}  R3f6 {[%clk 0:01:47]} 25. Be4 {[%clk 0:01:56]}  Bc8 {[%clk 0:01:38]} 26. Kf1 {[%clk 0:01:50]}  Ne7 {[%clk 0:01:37]} 27. Ke1 {[%clk 0:01:47]}  Nf5 {[%clk 0:01:28]} 28. Nd5 {[%clk 0:01:44]}  Rg6 {[%clk 0:01:26]} 29. Kd2 {[%clk 0:01:43]}  Rh6 {[%clk 0:01:22]} 30. Rg1 {[%clk 0:01:29]}  Rh2 {[%clk 0:01:20]} 31. f3 {[%clk 0:01:18]}  Rxe2+ {[%clk 0:01:17]} 32. Kxe2 {[%clk 0:01:19]}  g6 {[%clk 0:01:09]} 33. b4 {[%clk 0:01:09]}  Bd7 {[%clk 0:01:07]} 34. Rg5 {[%clk 0:00:34]}  Bc6 {[%clk 0:01:03]} 35. Ne3 {[%clk 0:00:27]}  Nxe3 {[%clk 0:00:53]} 36. Kxe3 {[%clk 0:00:28]}  d5 {[%clk 0:00:49]} 37. Rxe5 {[%clk 0:00:24]}  dxe4 {[%clk 0:00:48]} 38. fxe4 {[%clk 0:00:25]}  Kg7 {[%clk 0:00:37]} 39. Rg5 {[%clk 0:00:17]}  h6 {[%clk 0:00:34]} 40. Rg3 {[%clk 0:00:16]}  g5 {[%clk 0:00:31]} 41. d4 {[%clk 0:00:16]}  Re8 {[%clk 0:00:30]} 42. e5 {[%clk 0:00:16]}  Bd5 {[%clk 0:00:29]} 43. a4 {[%clk 0:00:15]}  b5 {[%clk 0:00:24]} 44. axb5 {[%clk 0:00:14]}  axb5 {[%clk 0:00:24]} 45. Rg1 {[%clk 0:00:15]}  Kg6 {[%clk 0:00:24]} 46. Ra1 {[%clk 0:00:15]}  Re6 {[%clk 0:00:23]} 47. Ra7 {[%clk 0:00:13]}  h5 {[%clk 0:00:22]} 48. Rd7 {[%clk 0:00:14]}  Bc4 {[%clk 0:00:19]} 49. Kf3 {[%clk 0:00:07]}  h4 {[%clk 0:00:10]} 50. Rd8 {[%clk 0:00:03]}  Re7 {[%clk 0:00:10]} 51. Rd6+ {[%clk 0:00:02]}  Kh5 {[%clk 0:00:08]} 0-1


[Site "https://www.chess.com"]

[Event "Titled Tuesday Blitz May 4 2021"]
[White "Meissner, Felix"]
[Black "De Silva, L M S T"]
[WhiteFideId "24671827"]
[BlackFideId "9953698"]
[WhiteElo "2390"]
[BlackElo "1621"]
[Result "1-0"]
[Round "04"]
[TimeControl "180+1"]
[Date "2021.05.04"]
[WhiteClock "0:00:44"]
[BlackClock "0:00:05"]

1. e4 {[%clk 0:03:00]}  e5 {[%clk 0:03:00]} 2. Nf3 {[%clk 0:03:00]}  Nc6 {[%clk 0:03:01]} 3. g3 {[%clk 0:02:58]}  Nf6 {[%clk 0:03:00]} 4. d3 {[%clk 0:02:59]}  Bc5 {[%clk 0:03:00]} 5. Bg2 {[%clk 0:02:58]}  O-O {[%clk 0:03:01]} 6. O-O {[%clk 0:02:57]}  Bb6 {[%clk 0:02:59]} 7. Nc3 {[%clk 0:02:57]}  d6 {[%clk 0:03:00]} 8. Bg5 {[%clk 0:02:55]}  Be6 {[%clk 0:03:00]} 9. Nd2 {[%clk 0:02:54]}  h6 {[%clk 0:03:00]} 10. Bxf6 {[%clk 0:02:54]}  Qxf6 {[%clk 0:03:01]} 11. Nc4 {[%clk 0:02:53]}  Bxc4 {[%clk 0:02:56]} 12. dxc4 {[%clk 0:02:54]}  Ne7 {[%clk 0:02:56]} 13. Nd5 {[%clk 0:02:51]}  Nxd5 {[%clk 0:02:55]} 14. cxd5 {[%clk 0:02:52]}  Qg6 {[%clk 0:02:51]} 15. Qd3 {[%clk 0:02:49]}  Qh5 {[%clk 0:02:40]} 16. Bf3 {[%clk 0:02:48]}  Qg5 {[%clk 0:02:36]} 17. Kg2 {[%clk 0:02:44]}  f5 {[%clk 0:02:35]} 18. exf5 {[%clk 0:02:44]}  Rxf5 {[%clk 0:02:36]} 19. Be4 {[%clk 0:02:43]}  Rf7 {[%clk 0:02:32]} 20. f3 {[%clk 0:02:38]}  Raf8 {[%clk 0:02:32]} 21. b4 {[%clk 0:02:33]}  Kh8 {[%clk 0:02:30]} 22. a4 {[%clk 0:02:33]}  a6 {[%clk 0:02:28]} 23. a5 {[%clk 0:02:33]}  Ba7 {[%clk 0:02:26]} 24. b5 {[%clk 0:02:31]}  axb5 {[%clk 0:02:26]} 25. Qxb5 {[%clk 0:02:32]}  Qd2+ {[%clk 0:02:25]} 26. Kh1 {[%clk 0:02:31]}  Bd4 {[%clk 0:02:07]} 27. Rad1 {[%clk 0:02:28]}  Qe3 {[%clk 0:01:58]} 28. Qd3 {[%clk 0:02:07]}  Qg5 {[%clk 0:01:53]} 29. Rb1 {[%clk 0:02:03]}  b6 {[%clk 0:01:41]} 30. a6 {[%clk 0:02:02]}  Ra8 {[%clk 0:01:41]} 31. c3 {[%clk 0:01:56]}  Bc5 {[%clk 0:01:40]} 32. Ra1 {[%clk 0:01:56]}  Qf6 {[%clk 0:01:34]} 33. Qb5 {[%clk 0:01:55]}  Ra7 {[%clk 0:01:32]} 34. Qe8+ {[%clk 0:01:53]}  Rf8 {[%clk 0:01:32]} 35. Qb5 {[%clk 0:01:51]}  Rfa8 {[%clk 0:01:30]} 36. Kg2 {[%clk 0:01:50]}  Qf8 {[%clk 0:01:24]} 37. Bd3 {[%clk 0:01:49]}  Qe7 {[%clk 0:01:17]} 38. Ra2 {[%clk 0:01:48]}  Rf8 {[%clk 0:01:16]} 39. Re2 {[%clk 0:01:43]}  Rf6 {[%clk 0:01:14]} 40. Qc4 {[%clk 0:01:42]}  Qf8 {[%clk 0:01:14]} 41. Qe4 {[%clk 0:01:42]}  g6 {[%clk 0:01:11]} 42. Ra1 {[%clk 0:01:35]}  Kg7 {[%clk 0:01:02]} 43. Bb5 {[%clk 0:01:33]}  Qc8 {[%clk 0:00:54]} 44. h4 {[%clk 0:01:30]}  Rf5 {[%clk 0:00:43]} 45. Bd3 {[%clk 0:01:19]}  Qf8 {[%clk 0:00:39]} 46. h5 {[%clk 0:01:17]}  Rg5 {[%clk 0:00:27]} 47. hxg6 {[%clk 0:01:13]}  h5 {[%clk 0:00:28]} 48. Qh4 {[%clk 0:01:10]}  Qf6 {[%clk 0:00:28]} 49. Be4 {[%clk 0:01:04]}  b5 {[%clk 0:00:24]} 50. Qh3 {[%clk 0:01:02]}  Qe7 {[%clk 0:00:22]} 51. Qc8 {[%clk 0:01:00]}  h4 {[%clk 0:00:20]} 52. g4 {[%clk 0:00:58]}  h3+ {[%clk 0:00:10]} 53. Kxh3 {[%clk 0:00:58]}  Rxg6 {[%clk 0:00:05]} 54. Bxg6 {[%clk 0:00:56]}  Kxg6 {[%clk 0:00:06]} 55. Qg8+ {[%clk 0:00:54]}  Kf6 {[%clk 0:00:07]} 56. f4 {[%clk 0:00:46]}  Ra8 {[%clk 0:00:04]} 57. fxe5+ {[%clk 0:00:44]}  dxe5 {[%clk 0:00:05]} 58. Rf1+ {[%clk 0:00:44]} 1-0


[Site "https://www.chess.com"]

[Event "Titled Tuesday Blitz May 4 2021"]
[White "Meneses Gonzalez, Kevin Moises"]
[Black "Borawski, Jakub"]
[WhiteFideId "2284502"]
[BlackFideId "1143000"]
[WhiteElo "2301"]
[BlackElo "2020"]
[Result "1-0"]
[Round "04"]
[TimeControl "180+1"]
[Date "2021.05.04"]
[WhiteClock "0:00:10"]
[BlackClock "0:00:02"]

1. e4 {[%clk 0:02:58]}  e5 {[%clk 0:03:00]} 2. Nf3 {[%clk 0:02:59]}  Nc6 {[%clk 0:03:00]} 3. Bb5 {[%clk 0:02:59]}  a6 {[%clk 0:03:01]} 4. Ba4 {[%clk 0:03:00]}  Nf6 {[%clk 0:03:00]} 5. O-O {[%clk 0:03:00]}  Be7 {[%clk 0:03:01]} 6. Re1 {[%clk 0:03:00]}  b5 {[%clk 0:03:01]} 7. Bb3 {[%clk 0:03:00]}  d6 {[%clk 0:03:01]} 8. c3 {[%clk 0:02:58]}  O-O {[%clk 0:03:01]} 9. h3 {[%clk 0:02:59]}  Nb8 {[%clk 0:03:00]} 10. d4 {[%clk 0:02:58]}  Nbd7 {[%clk 0:03:00]} 11. Nbd2 {[%clk 0:02:59]}  Bb7 {[%clk 0:03:00]} 12. Bc2 {[%clk 0:02:57]}  Re8 {[%clk 0:03:00]} 13. Nf1 {[%clk 0:02:57]}  Bf8 {[%clk 0:03:01]} 14. Ng3 {[%clk 0:02:57]}  g6 {[%clk 0:03:01]} 15. a4 {[%clk 0:02:58]}  exd4 {[%clk 0:02:59]} 16. cxd4 {[%clk 0:02:58]}  c5 {[%clk 0:02:59]} 17. d5 {[%clk 0:02:53]}  Bg7 {[%clk 0:02:41]} 18. Bf4 {[%clk 0:02:52]}  Nb6 {[%clk 0:02:38]} 19. a5 {[%clk 0:02:45]}  Nc4 {[%clk 0:02:36]} 20. b3 {[%clk 0:02:26]}  Ne5 {[%clk 0:02:34]} 21. Nxe5 {[%clk 0:02:24]}  dxe5 {[%clk 0:02:35]} 22. Be3 {[%clk 0:02:24]}  Qd6 {[%clk 0:02:30]} 23. Rc1 {[%clk 0:02:05]}  Rac8 {[%clk 0:02:30]} 24. Bb1 {[%clk 0:02:05]}  Nd7 {[%clk 0:02:24]} 25. Qd2 {[%clk 0:02:00]}  h5 {[%clk 0:02:10]} 26. Bg5 {[%clk 0:01:36]}  f6 {[%clk 0:02:06]} 27. Bh6 {[%clk 0:01:35]}  h4 {[%clk 0:02:03]} 28. Nf1 {[%clk 0:01:32]}  Qf8 {[%clk 0:01:52]} 29. Be3 {[%clk 0:01:31]}  f5 {[%clk 0:01:48]} 30. Bg5 {[%clk 0:01:22]}  Nf6 {[%clk 0:01:16]} 31. exf5 {[%clk 0:01:21]}  gxf5 {[%clk 0:01:10]} 32. Bxf5 {[%clk 0:01:22]}  Nxd5 {[%clk 0:01:03]} 33. Bxc8 {[%clk 0:01:14]}  Rxc8 {[%clk 0:01:00]} 34. Ne3 {[%clk 0:00:59]}  Nf4 {[%clk 0:00:51]} 35. Bxh4 {[%clk 0:00:59]}  Rc7 {[%clk 0:00:47]} 36. Rcd1 {[%clk 0:00:57]}  Qf7 {[%clk 0:00:37]} 37. Qd8+ {[%clk 0:00:57]}  Kh7 {[%clk 0:00:37]} 38. Bg5 {[%clk 0:00:34]}  Ne6 {[%clk 0:00:14]} 39. Qd3+ {[%clk 0:00:20]}  e4 {[%clk 0:00:15]} 40. Qd6 {[%clk 0:00:20]}  Nxg5 {[%clk 0:00:14]} 41. Nd5 {[%clk 0:00:20]}  Bxd5 {[%clk 0:00:10]} 42. Rxd5 {[%clk 0:00:19]}  Ne6 {[%clk 0:00:06]} 43. Rxe4 {[%clk 0:00:16]}  Nd4 {[%clk 0:00:05]} 44. Rh4+ {[%clk 0:00:14]}  Kg8 {[%clk 0:00:06]} 45. Qd8+ {[%clk 0:00:13]}  Qf8 {[%clk 0:00:02]} 46. Qxc7 {[%clk 0:00:11]}  Ne2+ {[%clk 0:00:02]} 47. Kh2 {[%clk 0:00:10]} 1-0


[Site "https://www.chess.com"]

[Event "Titled Tuesday Blitz May 4 2021"]
[White "Mickiewicz, Piotr"]
[Black "Garcia, Gabriel Gonzaga"]
[WhiteFideId "1114891"]
[BlackFideId "2138956"]
[WhiteElo "2263"]
[BlackElo "2240"]
[Result "1-0"]
[Round "04"]
[TimeControl "180+1"]
[Date "2021.05.04"]
[WhiteClock "0:00:33"]
[BlackClock "0:01:22"]

1. Nf3 {[%clk 0:03:00]}  Nf6 {[%clk 0:02:56]} 2. g3 {[%clk 0:03:00]}  b6 {[%clk 0:02:55]} 3. Bg2 {[%clk 0:03:01]}  Bb7 {[%clk 0:02:56]} 4. O-O {[%clk 0:03:01]}  e6 {[%clk 0:02:57]} 5. c4 {[%clk 0:03:00]}  c5 {[%clk 0:02:57]} 6. b3 {[%clk 0:02:59]}  Nc6 {[%clk 0:02:58]} 7. Bb2 {[%clk 0:02:59]}  d5 {[%clk 0:02:58]} 8. cxd5 {[%clk 0:02:57]}  exd5 {[%clk 0:02:57]} 9. d4 {[%clk 0:02:56]}  Be7 {[%clk 0:02:56]} 10. Nc3 {[%clk 0:02:55]}  O-O {[%clk 0:02:56]} 11. Rc1 {[%clk 0:02:52]}  Rc8 {[%clk 0:02:49]} 12. dxc5 {[%clk 0:02:25]}  bxc5 {[%clk 0:02:49]} 13. Na4 {[%clk 0:02:25]}  Nb4 {[%clk 0:02:40]} 14. a3 {[%clk 0:02:20]}  Na6 {[%clk 0:02:40]} 15. Ne5 {[%clk 0:02:08]}  Re8 {[%clk 0:02:30]} 16. Qd3 {[%clk 0:02:05]}  Nb8 {[%clk 0:02:07]} 17. Rfd1 {[%clk 0:02:00]}  Nbd7 {[%clk 0:02:06]} 18. Nxd7 {[%clk 0:01:52]}  Qxd7 {[%clk 0:02:07]} 19. Bxf6 {[%clk 0:01:50]}  Bxf6 {[%clk 0:02:06]} 20. Nxc5 {[%clk 0:01:48]}  Qe7 {[%clk 0:01:53]} 21. Nxb7 {[%clk 0:01:46]}  Qxb7 {[%clk 0:01:54]} 22. Bxd5 {[%clk 0:01:43]}  Qb6 {[%clk 0:01:45]} 23. Bxf7+ {[%clk 0:01:33]}  Kxf7 {[%clk 0:01:34]} 24. Rxc8 {[%clk 0:01:32]}  Rxc8 {[%clk 0:01:29]} 25. Qd7+ {[%clk 0:01:32]}  Kg6 {[%clk 0:01:30]} 26. Qg4+ {[%clk 0:01:27]}  Kh6 {[%clk 0:01:30]} 27. Qxc8 {[%clk 0:01:25]}  Qxb3 {[%clk 0:01:31]} 28. Qc1+ {[%clk 0:01:14]}  Bg5 {[%clk 0:01:30]} 29. Rd6+ {[%clk 0:00:56]}  g6 {[%clk 0:01:29]} 30. e3 {[%clk 0:00:51]}  Be7 {[%clk 0:01:21]} 31. Rd7 {[%clk 0:00:47]}  Bxa3 {[%clk 0:01:21]} 32. Qc7 {[%clk 0:00:40]}  Qb1+ {[%clk 0:01:21]} 33. Kg2 {[%clk 0:00:39]}  Qe4+ {[%clk 0:01:22]} 34. f3 {[%clk 0:00:35]}  Qxe3 {[%clk 0:01:22]} 35. Rxh7+ {[%clk 0:00:34]}  Kg5 {[%clk 0:01:22]} 36. h4+ {[%clk 0:00:33]} 1-0


[Site "https://www.chess.com"]